[Event "NK Rapid Vrouwen 2019"]
[Site "Amstelveen, Netherlands"]
[Date "2019.12.01"]
[Round "1.4"]
[White "Roebers, Eline"]
[Black "Jong-Muhren, Bianca de"]
[Result "1-0"]
[TimeControl "15m+10s"]
[BlackTitle "WGM"]
[WhiteFideId "1058401"]
[BlackFideId "1008498"]
[WhiteElo "2102"]
[BlackElo "2249"]

1. e4 {[%clk 00:15:17]} {[%emt 00:00:02]} c5 {[%clk 00:15:19]} {[%emt
00:00:02]} 2. Nf3 {[%clk 00:15:25]} {[%emt 00:00:02]} e6 {[%clk 00:15:28]}
{[%emt 00:00:02]} 3. d4 {[%clk 00:15:32]} {[%emt 00:00:03]} cxd4 {[%clk
00:15:36]} {[%emt 00:00:01]} 4. Nxd4 {[%clk 00:15:40]} {[%emt 00:00:02]} Nc6
{[%clk 00:15:45]} {[%emt 00:00:02]} 5. Nc3 {[%clk 00:15:48]} {[%emt 00:00:02]}
Qc7 {[%clk 00:15:54]} {[%emt 00:00:01]} 6. f4 {[%clk 00:15:22]} {[%emt
00:00:35]} a6 {[%clk 00:15:25]} {[%emt 00:00:40]} 7. Nxc6 {[%clk 00:15:29]}
{[%emt 00:00:03]} dxc6 {[%clk 00:15:07]} {[%emt 00:00:28]} 8. e5 {[%clk
00:14:26]} {[%emt 00:01:13]} Ne7 {[%clk 00:13:38]} {[%emt 00:01:39]} 9. Ne4
{[%clk 00:12:24]} {[%emt 00:02:12]} Nf5 {[%clk 00:08:59]} {[%emt 00:04:49]} 10.
Be2 {[%clk 00:11:41]} {[%emt 00:00:53]} c5 {[%clk 00:08:12]} {[%emt 00:00:58]}
11. O-O {[%clk 00:11:02]} {[%emt 00:00:48]} Bd7 {[%clk 00:07:35]} {[%emt
00:00:47]} 12. g4 {[%clk 00:05:50]} {[%emt 00:05:21]} Nd4 {[%clk 00:07:39]}
{[%emt 00:00:08]} 13. c3 {[%clk 00:05:55]} {[%emt 00:00:05]} Nxe2+ {[%clk
00:05:56]} {[%emt 00:01:53]} 14. Qxe2 {[%clk 00:06:04]} O-O-O {[%clk 00:05:03]}
{[%emt 00:01:03]} 15. Be3 {[%clk 00:05:12]} {[%emt 00:01:02]} Bc6 {[%clk
00:01:08]} {[%emt 00:04:05]} 16. Bf2 {[%clk 00:05:19]} {[%emt 00:00:02]} Bxe4
{[%clk 00:00:55]} {[%emt 00:00:24]} 17. Qxe4 {[%clk 00:05:28]} {[%emt
00:00:01]} Rd2 {[%clk 00:00:49]} {[%emt 00:00:16]} 18. b4 {[%clk 00:04:18]}
{[%emt 00:01:20]} Be7 {[%clk 00:00:52]} {[%emt 00:00:07]} 19. b5 {[%clk
00:02:03]} {[%emt 00:02:25]} axb5 {[%clk 00:00:37]} {[%emt 00:00:25]} 20. a4
{[%clk 00:02:12]} {[%emt 00:00:01]} Qc6 {[%clk 00:00:20]} {[%emt 00:00:27]} 21.
Qxc6+ {[%clk 00:02:17]} {[%emt 00:00:05]} bxc6 {[%clk 00:00:29]} {[%emt
00:00:01]} 22. axb5 {[%clk 00:02:26]} Kb7 {[%clk 00:00:17]} {[%emt 00:00:22]}
23. Rfb1 {[%clk 00:01:42]} {[%emt 00:00:53]} Rhd8 {[%clk 00:00:21]} {[%emt
00:00:06]} 24. c4 {[%clk 00:01:05]} {[%emt 00:00:47]} cxb5 {[%clk 00:00:16]}
{[%emt 00:00:16]} 25. Rxb5+ {[%clk 00:01:12]} {[%emt 00:00:03]} Kc6 {[%clk
00:00:25]} 26. Ra7 {[%clk 00:01:00]} {[%emt 00:00:22]} Bf8 {[%clk 00:00:12]}
{[%emt 00:00:23]} 27. Rba5 {[%clk 00:00:23]} {[%emt 00:00:47]} Rb8 {[%clk
00:00:22]} 28. R5a6+ {[%clk 00:00:33]} Rb6 {[%clk 00:00:31]} 29. Rxb6+ {[%clk
00:00:42]} Kxb6 {[%clk 00:00:40]} 30. Rxf7 {[%clk 00:00:50]} {[%emt 00:00:02]}
Rd8 {[%clk 00:00:48]} {[%emt 00:00:02]} 31. Bh4 {[%clk 00:00:39]} {[%emt
00:00:20]} Rb8 {[%clk 00:00:35]} {[%emt 00:00:24]} 32. f5 {[%clk 00:00:32]}
{[%emt 00:00:17]} exf5 {[%clk 00:00:34]} {[%emt 00:00:11]} 33. e6 {[%clk
00:00:31]} {[%emt 00:00:11]} fxg4 {[%clk 00:00:12]} {[%emt 00:00:32]} 34. e7
{[%clk 00:00:40]} {[%emt 00:00:01]} Bxe7 {[%clk 00:00:21]} 35. Rxe7 {[%clk
00:00:49]} {[%emt 00:00:01]} Ka5 {[%clk 00:00:18]} {[%emt 00:00:13]} 36. Rxg7
{[%clk 00:00:44]} {[%emt 00:00:14]} h5 {[%clk 00:00:23]} {[%emt 00:00:06]} 37.
Rg5 {[%clk 00:00:24]} {[%emt 00:00:29]} Rb1+ {[%clk 00:00:21]} {[%emt
00:00:13]} 38. Kg2 {[%clk 00:00:29]} {[%emt 00:00:05]} Rb2+ {[%clk 00:00:21]}
{[%emt 00:00:10]} 39. Kg3 {[%clk 00:00:33]} {[%emt 00:00:06]} Kb4 {[%clk
00:00:13]} {[%emt 00:00:19]} 40. Rxh5 {[%clk 00:00:38]} {[%emt 00:00:04]} Kxc4
{[%clk 00:00:21]} {[%emt 00:00:02]} 41. Be7 {[%clk 00:00:42]} {[%emt 00:00:06]}
Rb5 {[%clk 00:00:15]} {[%emt 00:00:16]} 42. Kxg4 {[%clk 00:00:49]} {[%emt
00:00:03]} Kd4 {[%clk 00:00:24]} {[%emt 00:00:02]} 43. Bxc5+ {[%clk 00:00:48]}
{[%emt 00:00:11]} Ke4 {[%clk 00:00:17]} {[%emt 00:00:16]} 44. Bf2 {[%clk
00:00:24]} {[%emt 00:00:33]} Rb2 {[%clk 00:00:17]} {[%emt 00:00:11]} 45. Bg3
{[%clk 00:00:30]} {[%emt 00:00:04]} Ra2 {[%clk 00:00:20]} {[%emt 00:00:07]} 46.
Rh8 {[%clk 00:00:37]} {[%emt 00:00:02]} Kd5 {[%clk 00:00:27]} {[%emt 00:00:04]}
47. h4 {[%clk 00:00:43]} {[%emt 00:00:04]} Ke6 {[%clk 00:00:36]} 48. Rf8 {[%clk
00:00:44]} {[%emt 00:00:09]} Ke7 {[%clk 00:00:45]} {[%emt 00:00:02]} 49. Rf1
{[%clk 00:00:48]} {[%emt 00:00:05]} Ra4+ {[%clk 00:00:52]} {[%emt 00:00:04]} 50.
Rf4 {[%clk 00:00:54]} {[%emt 00:00:04]} Ra8 {[%clk 00:00:58]} {[%emt 00:00:04]}
51. h5 {[%clk 00:00:57]} {[%emt 00:00:07]} Rg8+ {[%clk 00:01:07]} {[%emt
00:00:01]} 52. Kh3 {[%clk 00:01:05]} {[%emt 00:00:01]} Rh8 {[%clk 00:01:16]}
{[%emt 00:00:02]} 53. Bh4+ {[%clk 00:01:11]} {[%emt 00:00:04]} Ke6 {[%clk
00:01:17]} {[%emt 00:00:09]} 54. Kg4 {[%clk 00:01:19]} {[%emt 00:00:01]} Rg8+
{[%clk 00:01:20]} {[%emt 00:00:07]} 55. Bg5 {[%clk 00:01:27]} {[%emt 00:00:01]}
Rh8 {[%clk 00:01:25]} {[%emt 00:00:06]} 56. h6 {[%clk 00:01:34]} {[%emt
00:00:03]} Rh7 {[%clk 00:01:31]} {[%emt 00:00:04]} 57. Kh5 {[%clk 00:01:38]}
{[%emt 00:00:05]} Rh8 {[%clk 00:01:22]} {[%emt 00:00:20]} 58. Bf6 {[%clk
00:01:23]} {[%emt 00:00:25]} 1-0

[Event "NK Rapid Vrouwen 2019"]
[Site "Amstelveen, Netherlands"]
[Date "2019.12.01"]
[Round "2.1"]
[White "Keetman, Maaike"]
[Black "Jong-Muhren, Bianca de"]
[Result "0-1"]
[TimeControl "15m+10s"]
[BlackTitle "WGM"]
[WhiteFideId "1033697"]
[BlackFideId "1008498"]
[WhiteElo "2181"]
[BlackElo "2249"]

1. e4 {[%clk 00:15:18]} {[%emt 00:00:02]} c5 {[%clk 00:15:19]} 2. Nf3 {[%clk
00:15:26]} {[%emt 00:00:01]} e6 {[%clk 00:15:28]} {[%emt 00:00:01]} 3. d4
{[%clk 00:15:34]} {[%emt 00:00:02]} cxd4 {[%clk 00:15:37]} {[%emt 00:00:02]} 4.
Nxd4 {[%clk 00:15:42]} {[%emt 00:00:02]} Nc6 {[%clk 00:15:46]} {[%emt
00:00:01]} 5. Nc3 {[%clk 00:15:49]} {[%emt 00:00:03]} Qc7 {[%clk 00:15:55]}
{[%emt 00:00:01]} 6. g3 {[%clk 00:15:57]} {[%emt 00:00:01]} a6 {[%clk
00:15:12]} {[%emt 00:00:54]} 7. Bg2 {[%clk 00:16:05]} {[%emt 00:00:02]} h5
{[%clk 00:15:09]} {[%emt 00:00:14]} 8. O-O {[%clk 00:15:59]} {[%emt 00:00:16]}
Nf6 {[%clk 00:14:28]} {[%emt 00:00:51]} 9. Be3 {[%clk 00:13:33]} {[%emt
00:02:36]} Ng4 {[%clk 00:12:59]} {[%emt 00:01:39]} 10. Bg5 {[%clk 00:10:37]}
{[%emt 00:03:05]} Bc5 {[%clk 00:11:57]} {[%emt 00:01:12]} 11. Nxc6 {[%clk
00:09:29]} {[%emt 00:01:18]} bxc6 {[%clk 00:11:19]} {[%emt 00:00:49]} 12. Na4
{[%clk 00:09:13]} {[%emt 00:00:26]} Ba7 {[%clk 00:04:38]} {[%emt 00:06:50]} 13.
c4 {[%clk 00:08:54]} {[%emt 00:00:28]} a5 {[%clk 00:03:52]} {[%emt 00:00:57]}
14. c5 {[%clk 00:05:51]} {[%emt 00:03:13]} Ba6 {[%clk 00:04:00]} {[%emt
00:00:02]} 15. Re1 {[%clk 00:06:00]} Bb5 {[%clk 00:04:09]} {[%emt 00:00:01]} 16.
Rc1 {[%clk 00:05:00]} {[%emt 00:01:09]} Rb8 {[%clk 00:03:03]} {[%emt 00:01:16]}
17. h3 {[%clk 00:03:58]} {[%emt 00:01:12]} Ne5 {[%clk 00:01:47]} {[%emt
00:01:26]} 18. Bf4 {[%clk 00:04:02]} {[%emt 00:00:07]} f6 {[%clk 00:01:41]}
{[%emt 00:00:16]} 19. Nc3 {[%clk 00:01:37]} {[%emt 00:02:35]} g5 {[%clk
00:01:07]} {[%emt 00:00:44]} 20. Bxe5 {[%clk 00:01:34]} {[%emt 00:00:13]} Qxe5
{[%clk 00:01:09]} {[%emt 00:00:08]} 21. Qd6 {[%clk 00:01:07]} {[%emt 00:00:37]}
Ba6 {[%clk 00:00:23]} {[%emt 00:00:57]} 22. Na4 {[%clk 00:00:45]} {[%emt
00:00:32]} Rb4 {[%clk 00:00:22]} {[%emt 00:00:11]} 23. b3 {[%clk 00:00:49]}
{[%emt 00:00:06]} Qxd6 {[%clk 00:00:18]} {[%emt 00:00:14]} 24. cxd6 {[%clk
00:00:58]} {[%emt 00:00:01]} Kf7 {[%clk 00:00:14]} {[%emt 00:00:14]} 25. Nc5
{[%clk 00:00:52]} {[%emt 00:00:16]} Bxc5 {[%clk 00:00:13]} {[%emt 00:00:11]} 26.
Rxc5 {[%clk 00:01:01]} a4 {[%clk 00:00:13]} {[%emt 00:00:11]} 27. Ra5 {[%clk
00:00:54]} {[%emt 00:00:17]} Ra8 {[%clk 00:00:19]} {[%emt 00:00:04]} 28. bxa4
{[%clk 00:00:35]} {[%emt 00:00:28]} e5 {[%clk 00:00:25]} {[%emt 00:00:05]} 29.
Bf1 {[%clk 00:00:36]} {[%emt 00:00:09]} Bb7 {[%emt 00:00:03]} 30. Rxa8 {[%clk
00:00:32]} {[%emt 00:00:13]} Bxa8 {[%clk 00:00:42]} 31. a5 {[%clk 00:00:23]}
{[%emt 00:00:19]} Ke6 {[%clk 00:00:46]} {[%emt 00:00:07]} 32. a3 {[%clk
00:00:25]} {[%emt 00:00:09]} Ra4 {[%clk 00:00:48]} {[%emt 00:00:07]} 33. a6
{[%clk 00:00:33]} {[%emt 00:00:02]} Kxd6 {[%clk 00:00:55]} {[%emt 00:00:03]} 34.
Re3 {[%clk 00:00:36]} {[%emt 00:00:07]} c5 {[%clk 00:00:57]} {[%emt 00:00:08]}
35. Rd3+ {[%clk 00:00:32]} {[%emt 00:00:14]} Kc7 {[%clk 00:00:28]} {[%emt
00:00:38]} 36. f3 {[%clk 00:00:24]} {[%emt 00:00:18]} c4 {[%clk 00:00:23]}
{[%emt 00:00:16]} 37. Rc3 {[%clk 00:00:30]} {[%emt 00:00:03]} d5 {[%clk
00:00:32]} {[%emt 00:00:01]} 38. exd5 {[%clk 00:00:33]} {[%emt 00:00:07]} Bxd5
{[%clk 00:00:41]} 39. Kf2 {[%clk 00:00:36]} {[%emt 00:00:08]} Kb6 {[%clk
00:00:50]} {[%emt 00:00:01]} 40. Ke3 {[%clk 00:00:41]} {[%emt 00:00:05]} Kc5
{[%clk 00:00:53]} {[%emt 00:00:07]} 41. Bd3 {[%clk 00:00:21]} {[%emt 00:00:30]}
Rxa6 {[%clk 00:00:56]} {[%emt 00:00:07]} 42. Bg6 {[%clk 00:00:22]} {[%emt
00:00:10]} h4 {[%clk 00:00:53]} {[%emt 00:00:13]} 43. gxh4 {[%clk 00:00:22]}
{[%emt 00:00:10]} gxh4 {[%clk 00:01:02]} {[%emt 00:00:02]} 44. Bf5 {[%clk
00:00:27]} {[%emt 00:00:04]} Ra7 {[%clk 00:01:07]} {[%emt 00:00:05]} 45. Bg4
{[%clk 00:00:31]} {[%emt 00:00:06]} Rb7 {[%clk 00:01:00]} {[%emt 00:00:17]} 46.
Bf5 {[%clk 00:00:24]} {[%emt 00:00:18]} Rb2 {[%clk 00:00:50]} {[%emt 00:00:20]}
47. Bg4 {[%clk 00:00:24]} {[%emt 00:00:10]} Rb1 {[%clk 00:00:48]} {[%emt
00:00:12]} 48. Bf5 {[%clk 00:00:28]} {[%emt 00:00:05]} Re1+ {[%clk 00:00:55]}
{[%emt 00:00:03]} 49. Kd2 {[%clk 00:00:36]} {[%emt 00:00:03]} Rf1 {[%clk
00:00:34]} {[%emt 00:00:30]} 50. Ke2 {[%clk 00:00:45]} {[%emt 00:00:01]} Kd4
{[%clk 00:00:15]} {[%emt 00:00:29]} 51. Rc2 {[%clk 00:00:24]} {[%emt 00:00:31]}
Ra1 {[%clk 00:00:20]} {[%emt 00:00:05]} 52. Rd2+ {[%clk 00:00:25]} {[%emt
00:00:09]} Kc5 {[%clk 00:00:28]} {[%emt 00:00:02]} 53. Bg4 {[%clk 00:00:14]}
{[%emt 00:00:21]} Rxa3 {[%clk 00:00:36]} {[%emt 00:00:02]} 54. Rc2 {[%clk
00:00:20]} {[%emt 00:00:05]} e4 {[%clk 00:00:16]} {[%emt 00:00:30]} 55. fxe4
{[%clk 00:00:21]} {[%emt 00:00:09]} Bxe4 {[%clk 00:00:25]} 56. Rb2 {[%clk
00:00:30]} {[%emt 00:00:01]} f5 {[%clk 00:00:30]} {[%emt 00:00:05]} 57. Bh5
{[%clk 00:00:29]} {[%emt 00:00:11]} Rxh3 {[%clk 00:00:36]} {[%emt 00:00:04]} 58.
Rb8 {[%clk 00:00:33]} {[%emt 00:00:05]} Kd4 {[%clk 00:00:36]} {[%emt 00:00:10]}
59. Bf7 {[%clk 00:00:29]} {[%emt 00:00:14]} Rh2+ {[%clk 00:00:44]} {[%emt
00:00:02]} 60. Kd1 {[%clk 00:00:37]} {[%emt 00:00:01]} c3 {[%clk 00:00:25]}
{[%emt 00:00:30]} 61. Bb3 {[%clk 00:00:29]} {[%emt 00:00:18]} c2+ {[%clk
00:00:23]} {[%emt 00:00:12]} 62. Bxc2 {[%clk 00:00:24]} {[%emt 00:00:15]} Bxc2+
{[%clk 00:00:32]} {[%emt 00:00:01]} 63. Ke1 {[%clk 00:00:33]} {[%emt 00:00:01]}
Be4 {[%clk 00:00:39]} {[%emt 00:00:03]} 0-1

[Event "NK Rapid Vrouwen 2019"]
[Site "Amstelveen, Netherlands"]
[Date "2019.12.01"]
[Round "2.2"]
[White "Lanchava, Tea"]
[Black "Roebers, Eline"]
[Result "1-0"]
[TimeControl "15m+10s"]
[WhiteTitle "IM"]
[WhiteFideId "1005308"]
[BlackFideId "1058401"]
[WhiteElo "2247"]
[BlackElo "2102"]

1. Nf3 {[%clk 00:15:17]} {[%emt 00:00:03]} Nf6 {[%clk 00:15:19]} {[%emt
00:00:02]} 2. g3 {[%clk 00:15:19]} {[%emt 00:00:07]} g6 {[%clk 00:15:27]}
{[%emt 00:00:02]} 3. Bg2 {[%clk 00:15:28]} {[%emt 00:00:01]} Bg7 {[%clk
00:15:35]} {[%emt 00:00:02]} 4. c4 {[%clk 00:15:36]} {[%emt 00:00:02]} O-O
{[%clk 00:15:43]} {[%emt 00:00:02]} 5. O-O {[%clk 00:15:44]} {[%emt 00:00:02]}
d6 {[%clk 00:15:50]} {[%emt 00:00:03]} 6. Nc3 {[%clk 00:15:47]} {[%emt
00:00:07]} Nc6 {[%clk 00:15:42]} {[%emt 00:00:17]} 7. d4 {[%clk 00:15:25]}
{[%emt 00:00:32]} Nd7 {[%clk 00:15:22]} {[%emt 00:00:31]} 8. e4 {[%clk
00:15:20]} {[%emt 00:00:14]} e5 {[%clk 00:15:29]} {[%emt 00:00:03]} 9. Bg5
{[%clk 00:15:03]} {[%emt 00:00:27]} Ne7 {[%clk 00:13:05]} {[%emt 00:02:35]} 10.
Qd2 {[%clk 00:14:53]} {[%emt 00:00:19]} exd4 {[%clk 00:11:39]} {[%emt
00:01:36]} 11. Nxd4 {[%clk 00:14:57]} {[%emt 00:00:05]} Ne5 {[%clk 00:10:59]}
{[%emt 00:00:50]} 12. b3 {[%clk 00:14:46]} {[%emt 00:00:21]} f6 {[%clk
00:10:31]} {[%emt 00:00:39]} 13. Bh6 {[%clk 00:12:45]} {[%emt 00:02:10]} Bxh6
{[%clk 00:09:16]} {[%emt 00:01:26]} 14. Qxh6 {[%clk 00:12:52]} {[%emt
00:00:03]} f5 {[%clk 00:08:44]} {[%emt 00:00:42]} 15. Qd2 {[%clk 00:12:30]}
{[%emt 00:00:32]} fxe4 {[%clk 00:08:08]} {[%emt 00:00:47]} 16. Nxe4 {[%clk
00:12:36]} {[%emt 00:00:04]} Nf5 {[%clk 00:07:59]} {[%emt 00:00:18]} 17. Nb5
{[%clk 00:12:41]} {[%emt 00:00:05]} a6 {[%clk 00:06:29]} {[%emt 00:01:41]} 18.
Nbc3 {[%clk 00:12:46]} {[%emt 00:00:04]} Bd7 {[%clk 00:06:29]} {[%emt
00:00:11]} 19. c5 {[%clk 00:12:33]} {[%emt 00:00:23]} Bc6 {[%clk 00:05:37]}
{[%emt 00:01:02]} 20. cxd6 {[%clk 00:12:10]} {[%emt 00:00:33]} cxd6 {[%clk
00:05:33]} {[%emt 00:00:14]} 21. Rad1 {[%clk 00:11:58]} {[%emt 00:00:22]} Qa5
{[%clk 00:04:25]} {[%emt 00:01:18]} 22. Nd5 {[%clk 00:08:28]} {[%emt 00:03:40]}
Qxd2 {[%clk 00:04:10]} {[%emt 00:00:25]} 23. Rxd2 {[%clk 00:08:33]} {[%emt
00:00:05]} Bxd5 {[%clk 00:03:41]} {[%emt 00:00:39]} 24. Rxd5 {[%clk 00:08:41]}
{[%emt 00:00:02]} Rac8 {[%clk 00:03:49]} {[%emt 00:00:01]} 25. Rd2 {[%clk
00:07:07]} {[%emt 00:01:44]} Rfd8 {[%clk 00:02:54]} {[%emt 00:01:05]} 26. Rfd1
{[%clk 00:07:16]} {[%emt 00:00:01]} Kf7 {[%clk 00:02:18]} {[%emt 00:00:47]} 27.
Ng5+ {[%clk 00:07:00]} {[%emt 00:00:25]} Kg8 {[%clk 00:01:37]} {[%emt
00:00:51]} 28. Bxb7 {[%clk 00:06:39]} {[%emt 00:00:32]} Rb8 {[%clk 00:01:34]}
{[%emt 00:00:14]} 29. Bd5+ {[%clk 00:06:30]} {[%emt 00:00:19]} Kh8 {[%clk
00:01:35]} {[%emt 00:00:08]} 30. f4 {[%clk 00:06:35]} {[%emt 00:00:04]} 1-0

[Event "NK Rapid Vrouwen 2019"]
[Site "Amstelveen, Netherlands"]
[Date "2019.12.01"]
[Round "2.3"]
[White "Paulet, Iozefina"]
[Black "Peng, Zhaoqin"]
[Result "0-1"]
[TimeControl "15m+10s"]
[WhiteTitle "WGM"]
[BlackTitle "GM"]
[WhiteFideId "1213261"]
[BlackFideId "1004786"]
[WhiteElo "2294"]
[BlackElo "2364"]

1. e4 {[%clk 00:15:14]} {[%emt 00:00:06]} c6 {[%clk 00:15:18]} {[%emt
00:00:02]} 2. d4 {[%clk 00:15:13]} {[%emt 00:00:11]} d5 {[%clk 00:15:27]} 3.
exd5 {[%clk 00:15:22]} {[%emt 00:00:02]} cxd5 {[%clk 00:15:36]} {[%emt
00:00:01]} 4. Bd3 {[%clk 00:15:30]} {[%emt 00:00:01]} Nc6 {[%clk 00:15:39]}
{[%emt 00:00:07]} 5. c3 {[%clk 00:15:39]} {[%emt 00:00:01]} Nf6 {[%clk
00:15:40]} {[%emt 00:00:10]} 6. Ne2 {[%clk 00:15:47]} {[%emt 00:00:02]} Bg4
{[%clk 00:15:32]} {[%emt 00:00:17]} 7. Bf4 {[%clk 00:14:59]} {[%emt 00:00:58]}
e6 {[%clk 00:15:37]} {[%emt 00:00:05]} 8. Na3 {[%clk 00:14:54]} {[%emt
00:00:16]} Bd6 {[%clk 00:15:28]} {[%emt 00:00:19]} 9. Bxd6 {[%clk 00:14:08]}
{[%emt 00:00:56]} Qxd6 {[%clk 00:15:35]} {[%emt 00:00:03]} 10. O-O {[%clk
00:14:16]} {[%emt 00:00:02]} O-O {[%clk 00:15:25]} {[%emt 00:00:19]} 11. Qd2
{[%clk 00:14:21]} {[%emt 00:00:05]} Bxe2 {[%clk 00:14:07]} {[%emt 00:01:28]} 12.
Qxe2 {[%clk 00:14:29]} {[%emt 00:00:02]} a6 {[%clk 00:14:08]} {[%emt 00:00:10]}
13. f4 {[%clk 00:14:29]} {[%emt 00:00:10]} Rfe8 {[%clk 00:12:27]} {[%emt
00:01:50]} 14. Nc2 {[%clk 00:14:35]} {[%emt 00:00:04]} Ne7 {[%clk 00:12:18]}
{[%emt 00:00:19]} 15. Rf3 {[%clk 00:13:15]} {[%emt 00:01:31]} Qb6 {[%clk
00:12:16]} {[%emt 00:00:11]} 16. Ne3 {[%clk 00:13:19]} {[%emt 00:00:07]} Nf5
{[%clk 00:12:06]} {[%emt 00:00:20]} 17. Raf1 {[%clk 00:12:52]} {[%emt
00:00:37]} h5 {[%clk 00:11:31]} {[%emt 00:00:44]} 18. Nd1 {[%clk 00:11:08]}
{[%emt 00:01:54]} Rac8 {[%clk 00:11:05]} {[%emt 00:00:37]} 19. Qe5 {[%clk
00:11:00]} {[%emt 00:00:17]} Ne4 {[%clk 00:09:37]} {[%emt 00:01:39]} 20. Bxe4
{[%clk 00:09:35]} {[%emt 00:01:36]} f6 {[%clk 00:09:43]} {[%emt 00:00:04]} 21.
Bxf5 {[%clk 00:09:43]} fxe5 {[%clk 00:09:51]} {[%emt 00:00:03]} 22. Bg6 {[%clk
00:09:53]} e4 {[%clk 00:09:36]} {[%emt 00:00:24]} 23. Rh3 {[%clk 00:10:01]}
{[%emt 00:00:02]} Rf8 {[%clk 00:09:26]} {[%emt 00:00:21]} 24. Rxh5 {[%clk
00:10:09]} {[%emt 00:00:02]} Rf6 {[%clk 00:09:24]} {[%emt 00:00:12]} 25. Bh7+
{[%clk 00:09:25]} {[%emt 00:00:53]} Kf7 {[%clk 00:09:19]} {[%emt 00:00:15]} 26.
g4 {[%clk 00:09:15]} {[%emt 00:00:20]} Rh6 {[%clk 00:08:51]} {[%emt 00:00:37]}
27. Rxh6 {[%clk 00:09:19]} {[%emt 00:00:07]} gxh6 {[%clk 00:09:00]} 28. f5
{[%clk 00:08:16]} {[%emt 00:01:13]} Kg7 {[%clk 00:08:42]} {[%emt 00:00:28]} 29.
Bg6 {[%clk 00:08:25]} {[%emt 00:00:02]} e5 {[%clk 00:08:46]} {[%emt 00:00:06]}
30. Ne3 {[%clk 00:08:03]} {[%emt 00:00:32]} exd4 {[%clk 00:08:08]} {[%emt
00:00:48]} 31. Nxd5 {[%clk 00:08:11]} {[%emt 00:00:02]} Qxb2 {[%clk 00:07:44]}
{[%emt 00:00:34]} 32. Bh5 {[%clk 00:06:37]} {[%emt 00:01:43]} dxc3 {[%clk
00:06:30]} {[%emt 00:01:24]} 33. f6+ {[%clk 00:06:38]} {[%emt 00:00:09]} Kf8
{[%clk 00:06:40]} 34. Ne7 {[%clk 00:05:56]} {[%emt 00:00:52]} c2 {[%clk
00:02:58]} {[%emt 00:03:51]} 35. Ng6+ {[%clk 00:06:05]} {[%emt 00:00:02]} Kf7
{[%clk 00:03:02]} {[%emt 00:00:06]} 36. Nf4+ {[%clk 00:03:29]} {[%emt
00:02:46]} Kxf6 {[%clk 00:03:06]} {[%emt 00:00:06]} 37. Nd3+ {[%clk 00:03:37]}
{[%emt 00:00:01]} Ke6 {[%clk 00:03:03]} {[%emt 00:00:13]} 38. Nxb2 {[%clk
00:02:40]} {[%emt 00:01:08]} c1=Q {[%clk 00:03:09]} {[%emt 00:00:04]} 39. Rxc1
{[%clk 00:02:44]} {[%emt 00:00:06]} Rxc1+ {[%clk 00:03:17]} {[%emt 00:00:01]}
40. Kf2 {[%clk 00:02:53]} Rc2+ {[%clk 00:03:20]} {[%emt 00:00:08]} 41. Ke3
{[%clk 00:02:59]} {[%emt 00:00:04]} Rxb2 {[%clk 00:03:28]} {[%emt 00:00:02]} 42.
h4 {[%clk 00:02:56]} {[%emt 00:00:13]} Ke5 {[%clk 00:02:58]} {[%emt 00:00:40]}
43. Bg6 {[%clk 00:02:09]} {[%emt 00:00:57]} Rxa2 {[%clk 00:02:57]} {[%emt
00:00:11]} 44. Bxe4 {[%clk 00:02:17]} {[%emt 00:00:03]} Ra3+ {[%clk 00:03:05]}
{[%emt 00:00:02]} 45. Bd3 {[%clk 00:02:25]} {[%emt 00:00:02]} b5 {[%clk
00:02:53]} {[%emt 00:00:22]} 46. g5 {[%clk 00:02:32]} {[%emt 00:00:03]} hxg5
{[%clk 00:03:01]} {[%emt 00:00:02]} 47. hxg5 {[%clk 00:02:39]} {[%emt
00:00:02]} Rxd3+ {[%clk 00:02:51]} {[%emt 00:00:20]} 48. Kxd3 {[%clk 00:02:44]}
{[%emt 00:00:05]} 0-1